Body,Body Name,Date,TransNo,Amount � (Excl VAT),Supplier name,Description,Expense Area,Expense Type,Expense Code,
http://opendatacommunities.org/id/london-borough-council/sutton,London Borough of Sutton,12/06/2023,10012607,112.19, VINYLBANNERSPRINTING,CHILDRENS CENTRE SERVICES EXPENSES,Health and Wellbeing,Equipment And Materials Purchase,A40000,
http://opendatacommunities.org/id/london-borough-council/sutton,London Borough of Sutton,08/06/2023,10012607,50.00, TESCO GIFT CARD,CHILDRENS CENTRE SERVICES EXPENSES,Health and Wellbeing,Provisions,A41006,
http://opendatacommunities.org/id/london-borough-council/sutton,London Borough of Sutton,05/06/2023,10012607,2.50, BP WRYTHE CONNECT,CHILDRENS CENTRE SERVICES EXPENSES,Health and Wellbeing,Provisions,A41006,
http://opendatacommunities.org/id/london-borough-council/sutton,London Borough of Sutton,05/06/2023,10012607,187.75, IKEA LTD 144 CROYDON M,CHILDRENS CENTRE SERVICES EXPENSES,Health and Wellbeing,Miscellaneous Expenses,A49000,
http://opendatacommunities.org/id/london-borough-council/sutton,London Borough of Sutton,26/05/2023,10012607,30.82, SP GETCOMPOSTING,COMPOST BIN,Health and Wellbeing,Equipment And Materials Purchase,A40000,
http://opendatacommunities.org/id/london-borough-council/sutton,London Borough of Sutton,25/06/2023,10012607,9.17, EBAY O 16-10213-69759,TOYS AND EQUIPMENT,Health and Wellbeing,Equipment And Materials Purchase,A40000,
http://opendatacommunities.org/id/london-borough-council/sutton,London Borough of Sutton,22/06/2023,10012607,8.32, TWINKL,TWINKL SUBSCRIPTION,Health and Wellbeing,Equipment And Materials Purchase,A40000,
http://opendatacommunities.org/id/london-borough-council/sutton,London Borough of Sutton,22/06/2023,10012607,17.15, AMZNMKTPLACE AMAZON.CO,TOYS AND EQUIPMENT,Health and Wellbeing,Equipment And Materials Purchase,A40000,
http://opendatacommunities.org/id/london-borough-council/sutton,London Borough of Sutton,21/06/2023,10012607,90.17, AMZNMKTPLACE,TOYS AND EQUIPMENT,Health and Wellbeing,Equipment And Materials Purchase,A40000,
http://opendatacommunities.org/id/london-borough-council/sutton,London Borough of Sutton,20/06/2023,10012607,24.99, AMAZON.CO.UK LW99O71U5,TOYS AND EQUIPMENT,Health and Wellbeing,Equipment And Materials Purchase,A40000,
http://opendatacommunities.org/id/london-borough-council/sutton,London Borough of Sutton,20/06/2023,10012607,77.29, TESCO STORES 5999,GROCERIES,Health and Wellbeing,Provisions,A41006,
http://opendatacommunities.org/id/london-borough-council/sutton,London Borough of Sutton,16/06/2023,10012607,82.43, SAINSBURYS.CO.UK,GROCERIES,Health and Wellbeing,Provisions,A41006,
http://opendatacommunities.org/id/london-borough-council/sutton,London Borough of Sutton,16/06/2023,10012607,-1.00, SAINSBURYS.CO.UK,GROCERY REFUND,Health and Wellbeing,Provisions,A41006,
http://opendatacommunities.org/id/london-borough-council/sutton,London Borough of Sutton,05/06/2023,10012607,99.34, SAINSBURYS.CO.UK,GROCERIES,Health and Wellbeing,Provisions,A41006,
http://opendatacommunities.org/id/london-borough-council/sutton,London Borough of Sutton,05/06/2023,10012607,51.88, TESCO STORES 5999,GROCERIES,Health and Wellbeing,Provisions,A41006,
http://opendatacommunities.org/id/london-borough-council/sutton,London Borough of Sutton,30/05/2023,10012607,87.74, TESCO STORES 5999,GROCERIES,Health and Wellbeing,Provisions,A41006,
http://opendatacommunities.org/id/london-borough-council/sutton,London Borough of Sutton,29/05/2023,10012607,15.60, TESCO STORES 3235,GROCERIES,Health and Wellbeing,Provisions,A41006,
http://opendatacommunities.org/id/london-borough-council/sutton,London Borough of Sutton,16/06/2023,10012607,12.32, LIDL GB LONDON,Catering Costs,Health and Wellbeing,Catering,A41000,
http://opendatacommunities.org/id/london-borough-council/sutton,London Borough of Sutton,07/06/2023,10012607,200.00, AMAZON.CO.UK 6N5W03QH5,SPLIT - AMAZON.CO.UK GIFT CARD FOR ANY AMOUNT IN A BLACK AND SILVER MINI ENVELOPE,Health and Wellbeing,Equipment And Materials Purchase,A40000,
http://opendatacommunities.org/id/london-borough-council/sutton,London Borough of Sutton,05/06/2023,10012607,66.64, AMZNMKTPLACE AMAZON.CO,"SPLIT - CRENZE 45L LIGHTWEIGHT FOLDABLE BACKPACK TRAVEL HIKING DAYPACK, MEN WOMEN DURABLE HANDY WATERPROOF RUCKSACK FOR CAMPING WALKING CYCLING CLIMBING",Health and Wellbeing,Equipment And Materials Purchase,A40000,
http://opendatacommunities.org/id/london-borough-council/sutton,London Borough of Sutton,05/06/2023,10012607,25.96, AMZNMKTPLACE,SPLIT - LAKELAND SEMI-SKIMMED MILK POTS (PACK OF 120),Health and Wellbeing,Equipment And Materials Purchase,A40000,
http://opendatacommunities.org/id/london-borough-council/sutton,London Borough of Sutton,02/06/2023,10012607,27.48, AMZNMKTPLACE AMAZON.CO,"SPLIT - QEEYON 10 PCS CLEAR ACRYLIC SHEETS, 1MM CLEAR ACRYLIC PLEXIGLASS PLASTIC SHEETS ACRYLIC PANEL FOR PICTURE FRAME GLASS REPLACEMENT, TABLE SIGNS, CALLIG",Health and Wellbeing,Equipment And Materials Purchase,A40000,
http://opendatacommunities.org/id/london-borough-council/sutton,London Borough of Sutton,17/06/2023,10012607,67.81, AMZNBUSINESS 1M7CQ3KW5,"SPLIT - VOUNOT 3X3M POP UP GAZEBO WITH 4 LEG WEIGHT BAGS, FOLDING PARTY TENT FOR GARDEN OUTDOOR, GREEN",Health and Wellbeing,Equipment And Materials Purchase,A40000,
http://opendatacommunities.org/id/london-borough-council/sutton,London Borough of Sutton,17/06/2023,10012607,67.81, AMZNBUSINESS 2X8KL9WT5,"SPLIT - VOUNOT 3X3M POP UP GAZEBO WITH 4 LEG WEIGHT BAGS, FOLDING PARTY TENT FOR GARDEN OUTDOOR, GREEN",Health and Wellbeing,Equipment And Materials Purchase,A40000,
http://opendatacommunities.org/id/london-borough-council/sutton,London Borough of Sutton,17/06/2023,10012607,67.81, AMZNBUSINESS WF69G23C5,"SPLIT - VOUNOT 3X3M POP UP GAZEBO WITH 4 LEG WEIGHT BAGS, FOLDING PARTY TENT FOR GARDEN OUTDOOR, GREEN",Health and Wellbeing,Equipment And Materials Purchase,A40000,
http://opendatacommunities.org/id/london-borough-council/sutton,London Borough of Sutton,17/06/2023,10012607,67.81, AMZNBUSINESS BP1T54KI5,"SPLIT - VOUNOT 3X3M POP UP GAZEBO WITH 4 LEG WEIGHT BAGS, FOLDING PARTY TENT FOR GARDEN OUTDOOR, GREEN",Health and Wellbeing,Equipment And Materials Purchase,A40000,
http://opendatacommunities.org/id/london-borough-council/sutton,London Borough of Sutton,24/06/2023,10012607,66.64, AMZNBUSINESS BO3MC0CU5,"Ahead NLHF project ""Shed Loads of Happines"" - Sub Code: D13101",Health and Wellbeing,Equipment And Materials Purchase,A40000,
http://opendatacommunities.org/id/london-borough-council/sutton,London Borough of Sutton,22/06/2023,10012607,9.16, AMZNMKTPLACE,Clear Nylon Thread Invisible String for Sutton STEAMs Ahead NLHF project,Health and Wellbeing,Equipment And Materials Purchase,A40000,
http://opendatacommunities.org/id/london-borough-council/sutton,London Borough of Sutton,22/06/2023,10012607,24.96, AMZNMKTPLACE,"SPLIT - MASTERPLUG PRO-XT FOUR SOCKET OPEN CABLE REEL EXTENSION LEAD WITH WINDING HANDLE, THERMAL CUT OUT AND POWER SWITCH, 25 METRES HIGH VISIBILITY CABLE ,",Health and Wellbeing,Equipment And Materials Purchase,A40000,
http://opendatacommunities.org/id/london-borough-council/sutton,London Borough of Sutton,22/06/2023,10012607,-1.26, AMZNMKTPLACE,"SPLIT - MASTERPLUG PRO-XT FOUR SOCKET OPEN CABLE REEL EXTENSION LEAD WITH WINDING HANDLE, THERMAL CUT OUT AND POWER SWITCH, 25 METRES HIGH VISIBILITY CABLE ,",Health and Wellbeing,Equipment And Materials Purchase,A40000,
http://opendatacommunities.org/id/london-borough-council/sutton,London Borough of Sutton,22/06/2023,10012607,52.48, AMZNMKTPLACE,"SPLIT - MASTERPLUG PRO-XT FOUR SOCKET OPEN CABLE REEL EXTENSION LEAD WITH WINDING HANDLE, THERMAL CUT OUT AND POWER SWITCH, 25 METRES HIGH VISIBILITY CABLE ,",Health and Wellbeing,Equipment And Materials Purchase,A40000,
http://opendatacommunities.org/id/london-borough-council/sutton,London Borough of Sutton,22/06/2023,10012607,26.36, AMZNMKTPLACE,"SPLIT - 14 PACK ARTIFICIAL IVY GARLAND, 98FT FAKE VINES ARTIFICIAL PLANT, ARTIFICIAL HANGING PLANT IVY VINES FOR BEDROOM AESTHETIC WALL DECORATIONS, FAKE PLAN",Health and Wellbeing,Equipment And Materials Purchase,A40000,
http://opendatacommunities.org/id/london-borough-council/sutton,London Borough of Sutton,22/06/2023,10012607,31.92, AMZNMKTPLACE AMAZON.CO,"SPLIT - YELYAN 2 PACK HANGING SUNFLOWER GARLANDS, ARTIFICIAL SUNFLOWER GARLAND SILK SUNFLOWER VINE FAUX FLOWER HANGING GARLAND WITH GREEN LEAVES FAKE FLORAL A",Health and Wellbeing,Equipment And Materials Purchase,A40000,
http://opendatacommunities.org/id/london-borough-council/sutton,London Borough of Sutton,22/06/2023,10012607,36.64, AMZNMKTPLACE,"SPLIT - KEPLIN 4PK WEIGHT BAGS FOR GAZEBO & TENTS, HEAVY DUTY SECURE FEET BAGS WITH VELCRO STRAPS FOR CANOPY, UMBRELLA, TRAMPOLINE, PATIO SHELTERS | FILL SAND FOR WEIGHTED STABLE RELIABLE HOLD (DOUBLE-POCKET)",Health and Wellbeing,Equipment And Materials Purchase,A40000,
http://opendatacommunities.org/id/london-borough-council/sutton,London Borough of Sutton,21/06/2023,10012607,19.80, AMZNMKTPLACE,SPLIT - AUGSHY 75 PCS BUTTERFLY DECORATION STAKES WATERPROOF GARDEN BUTTERFLY ORNAMENTS FOR INDOOR/OUTDOOR CHRISTMAS YARD DECOR,Health and Wellbeing,Equipment And Materials Purchase,A40000,
http://opendatacommunities.org/id/london-borough-council/sutton,London Borough of Sutton,21/06/2023,10012607,34.98, AMZNMKTPLACE,"SPLIT - NEWTHINKING 20PCS HANGING PAPER LANTERNS, 6"" 8"" 10"" 12"" ROUND GREEN PAPER LANTERN DECORATIONS WITH HANGING LINE FOR WEDDINGS DECORATION, INDOOR AND GA",Health and Wellbeing,Equipment And Materials Purchase,A40000,
http://opendatacommunities.org/id/london-borough-council/sutton,London Borough of Sutton,21/06/2023,10012607,24.96, AMZNMKTPLACE,"SPLIT - 100M BUNTING BANNER, MULTICOLOR FLAG BANNERS WITH 200 PCS TRIANGLE FLAGS, NYLON FABRIC BUNTING BANNERS FOR BIRTHDAY, WEDDING, OUTDOOR, INDOOR ACTIVITY",Health and Wellbeing,Equipment And Materials Purchase,A40000,
http://opendatacommunities.org/id/london-borough-council/sutton,London Borough of Sutton,02/06/2023,10012607,688.68, AMZNMKTPLACE AMAZON.CO,"SPLIT - OUTSUNNY GARDEN STORAGE TENT, HEAVY DUTY BIKE SHED, PATIO STORAGE SHELTER W/METAL FRAME AND DOUBLE ZIPPER DOORS, 2.8M X 2.4M X 2.4M, DARK GREY",Health and Wellbeing,Equipment And Materials Purchase,A40000,
http://opendatacommunities.org/id/london-borough-council/sutton,London Borough of Sutton,01/06/2023,10012607,23.56, AMZNMKTPLACE AMAZON.CO,SPLIT - LAKELAND SEMI-SKIMMED MILK POTS (PACK OF 120),Health and Wellbeing,Equipment And Materials Purchase,A40000,
http://opendatacommunities.org/id/london-borough-council/sutton,London Borough of Sutton,01/06/2023,10012607,12.04, AMZNMKTPLACE AMAZON.CO,"SPLIT - TATE & LYLE WHITE SACHETS, 2.5 KG",Health and Wellbeing,Equipment And Materials Purchase,A40000,
http://opendatacommunities.org/id/london-borough-council/sutton,London Borough of Sutton,31/05/2023,10012607,60.00, AMZNMKTPLACE AMAZON.CO,SPLIT - NESCAF� GOLD BLEND INSTANT COFFEE 500G TIN,Health and Wellbeing,Equipment And Materials Purchase,A40000,
http://opendatacommunities.org/id/london-borough-council/sutton,London Borough of Sutton,31/05/2023,10012607,15.96, AMZNMKTPLACE AMAZON.CO,SPLIT - TETLEY TEA BAGS 240'S,Health and Wellbeing,Equipment And Materials Purchase,A40000,
http://opendatacommunities.org/id/london-borough-council/sutton,London Borough of Sutton,31/05/2023,10012607,-0.80, AMZNMKTPLACE AMAZON.CO,BALANCING ENTRY AMOUNT,Health and Wellbeing,Equipment And Materials Purchase,A40000,
http://opendatacommunities.org/id/london-borough-council/sutton,London Borough of Sutton,21/06/2023,10012607,137.50, IKEA LTD SHOP ONLINE,Stools for LHH Stories events - Sub Code: D13101,Health and Wellbeing,Catering,A41000,
http://opendatacommunities.org/id/london-borough-council/sutton,London Borough of Sutton,13/06/2023,10012607,111.58, WWW.FLAGSANDFLAGPOLES.,BUNTING PURCHASE,Health and Wellbeing,Publicity,A44266,
http://opendatacommunities.org/id/london-borough-council/sutton,London Borough of Sutton,02/06/2023,10012607,16.34, GLS EDUCATIONAL SU,acrylic sheets for a cyanotype activity related to both the lavander fields forever and then now next programmes - Sutton STEAM's ahead programme,Health and Wellbeing,Equipment And Materials Purchase,A40000,
http://opendatacommunities.org/id/london-borough-council/sutton,London Borough of Sutton,01/06/2023,10012607,105.00, AMAZON.CO.UK 8S9AZ3XX5,SPLIT - AMAZON.CO.UK GIFT CARD FOR CUSTOM AMOUNT IN A BLACK BOX (70%),Health and Wellbeing,Provider Contract Payments,A44290,
http://opendatacommunities.org/id/london-borough-council/sutton,London Borough of Sutton,01/06/2023,10012607,45.00, AMAZON.CO.UK 8S9AZ3XX5,SPLIT - AMAZON.CO.UK GIFT CARD FOR ANY AMOUNT IN A RED REVEAL (30%),Health and Wellbeing,Provider Contract Payments,A44290,
http://opendatacommunities.org/id/london-borough-council/sutton,London Borough of Sutton,05/06/2023,10012607,146.13, AMZNMKTPLACE,RESOURCES FOR ANTENATAL GROUP,Health and Wellbeing,Other Supplies & Services,A44291,
http://opendatacommunities.org/id/london-borough-council/sutton,London Borough of Sutton,22/06/2023,10012607,999.17, C2E857400517R UKVI,SPONSORSHIP FOR AN OVERSEAS SOCIAL WORKER,Health and Wellbeing,Miscellaneous Expenses,A49000,
http://opendatacommunities.org/id/london-borough-council/sutton,London Borough of Sutton,20/06/2023,10012607,720.00, WWW.TTS-GROUPS.CO.UK,FAMILY HUBS PURCHASE,Health and Wellbeing,Furniture - Purchase,A40015,
http://opendatacommunities.org/id/london-borough-council/sutton,London Borough of Sutton,08/06/2023,10012607,26.94, AMZNMKTPLACE,"SPLIT - FURNISHED BLACKOUT ROLLER BLINDS FOR WINDOWS CUSTOM MADE TO MEASURE - BLACK OUT THERMAL FABRIC DURABLE FITTINGS EASY FIT - ROLLER BLIND, CREAM BEIGE, UP TO 120CM",Health and Wellbeing,Furniture - Purchase,A40015,
http://opendatacommunities.org/id/london-borough-council/sutton,London Borough of Sutton,08/06/2023,10012607,39.19, AMZNMKTPLACE,"SPLIT - FURNISHED BLACKOUT ROLLER BLINDS FOR WINDOWS CUSTOM MADE TO MEASURE - BLACK OUT THERMAL FABRIC DURABLE FITTINGS EASY FIT - ROLLER BLIND, CREAM, UP TO 150CM",Health and Wellbeing,Furniture - Purchase,A40015,
http://opendatacommunities.org/id/london-borough-council/sutton,London Borough of Sutton,31/05/2023,10012607,299.93, FACEBK  3HGR6Q79W2,ADVERTISEMENT,Health and Wellbeing,Fees,A44040,
http://opendatacommunities.org/id/london-borough-council/sutton,London Borough of Sutton,24/06/2023,10012607,"1,380.00", DOCUSIGN,DOCUSIGN INVOICE NO. 222200011293 - 1000 SUBS YEAR ONE,Resources,IT Software Purchase,A45040,
http://opendatacommunities.org/id/london-borough-council/sutton,London Borough of Sutton,03/06/2023,10012607,8.32, SPOTIFY UK,MUSIC FOR WEDDINGS,Health and Wellbeing,Subscriptions,A47010,
http://opendatacommunities.org/id/london-borough-council/sutton,London Borough of Sutton,06/06/2023,10012607,32.54, NEWSQUEST MEDIA GROUP,PUBLIC ONLINE NOTICE FOR NEW WAVES CHAPEL,Health and Wellbeing,Miscellaneous Expenses,A49000,
http://opendatacommunities.org/id/london-borough-council/sutton,London Borough of Sutton,20/06/2023,10012607,-239.96, TRAVELODGE,CANCELLATION OF TRAVELODGE ACCOMMODATION FOR AMANDA CHERRINGTON - LGA CONFERENCE BOURNEMOUTH 2023,Resources,Conference Expenses,A43075,
http://opendatacommunities.org/id/london-borough-council/sutton,London Borough of Sutton,13/06/2023,10012607,240.00, DOCUSIGN INC.,DOCUSIGN,People's Services,Subscriptions,A47010,
http://opendatacommunities.org/id/london-borough-council/sutton,London Borough of Sutton,12/06/2023,10012607,147.05, DOCUSIGN INC.,DOCUSIGN,People's Services,Subscriptions,A47010,
http://opendatacommunities.org/id/london-borough-council/sutton,London Borough of Sutton,02/06/2023,10012607,732.00, PREMIER INN,Accomodation,People's Services,C.C.A Travel & Subsistance,A61010,
http://opendatacommunities.org/id/london-borough-council/sutton,London Borough of Sutton,10/06/2023,10012607,107.85, AMZNMKTPLACE,SOCIAL CARE PURCHASES,People's Services,Business Support Support,H10011,
http://opendatacommunities.org/id/london-borough-council/sutton,London Borough of Sutton,14/06/2023,10012607,76.67, TRAINLINE.COM,"RETURN TRAIN TICKET FOR  ""REDACTED - PERSONAL DATA"" TO ATTEND LGA CONFERENCE BOURNEMOUTH 2023",Resources,Non-Staff Travel Subsistence & Training,A46006,
http://opendatacommunities.org/id/london-borough-council/sutton,London Borough of Sutton,16/06/2023,10012607,200.00, S00038451INY UKVI,COS - UKVI PAYMENT FOR CHILDRENS SOCIAL SERVICES,Resources,Miscellaneous Expenses,A49000,
http://opendatacommunities.org/id/london-borough-council/sutton,London Borough of Sutton,16/06/2023,10012607,7.07, FOREIGN EXCHANGE FEE,FOREIGN EXCHANGE FEE,Resources,Miscellaneous Expenses,A49000,
http://opendatacommunities.org/id/london-borough-council/sutton,London Borough of Sutton,15/06/2023,10012607,256.95, UKVI 3JLN0038070619,COS APPLICATION FOR SMITHA - ADULTS SS ,Resources,Miscellaneous Expenses,A49000,
http://opendatacommunities.org/id/london-borough-council/sutton,London Borough of Sutton,12/06/2023,10012607,"3,199.00", C2E856400202C UKVI,COS - UKVI PAYMENT FOR CHILDRENS SOCIAL SERVICES,Resources,Miscellaneous Expenses,A49000,
http://opendatacommunities.org/id/london-borough-council/sutton,London Borough of Sutton,22/06/2023,10012607,-255.00, MAJESTIC WINE,WINE GLASS AND WINE COOLER DEPOSIT REFUND FOR ANNUAL MAYOR MAKING MAY 2023,Resources,Hospitality,A46020,
http://opendatacommunities.org/id/london-borough-council/sutton,London Borough of Sutton,14/06/2023,10012607,150.14, TRAINLINE.COM,"RETURN TRAIN TICKETS FOR  ""REDACTED - PERSONAL DATA""TO ATTEND LGA CONFERENCE BOURNEMOUTH 2023",Resources,Non-Staff Travel Subsistence & Training,A46006,
http://opendatacommunities.org/id/london-borough-council/sutton,London Borough of Sutton,08/06/2023,10012607,20.00, TFL OYSTER AUTO TOPUP,"TFL OYSTER CARD AUTO TOP UP FOR ""REDACTED - PERSONAL DATA""",Resources,Non-Staff Travel Subsistence & Training,A46006,
http://opendatacommunities.org/id/london-borough-council/sutton,London Borough of Sutton,15/06/2023,10012607,45.69, TRAINLINE.COM,"RETURN TRAIN TICKET FOR ""REDACTED - PERSONAL DATA""TO ATTEND LGA CONFERENCE BOURNEMOUTH 2023",Resources,Non-Staff Travel Subsistence & Training,A46006,
http://opendatacommunities.org/id/london-borough-council/sutton,London Borough of Sutton,21/06/2023,10012607,270.07, MAILCHIMP,SUBSCRIPTION,Resources,Publicity,A44266,
http://opendatacommunities.org/id/london-borough-council/sutton,London Borough of Sutton,19/06/2023,10012607,1.94, FOREIGN EXCHANGE FEE,FOREIGN EXCHANGE FEE,Resources,Publicity,A44266,
http://opendatacommunities.org/id/london-borough-council/sutton,London Borough of Sutton,18/06/2023,10012607,70.47, CANVA  I03821-0351336,SUBSCRIPTION,Resources,Publicity,A44266,
http://opendatacommunities.org/id/london-borough-council/sutton,London Borough of Sutton,14/06/2023,10012607,479.35, MAILCHIMP,SUBSCRIPTION,Resources,Publicity,A44266,
http://opendatacommunities.org/id/london-borough-council/sutton,London Borough of Sutton,23/06/2023,10012607,320.00, CC-HIGHSTREETVOUCHERS,HIGH STREET VOUCHERS,Resources,Miscellaneous Expenses,A49000,
http://opendatacommunities.org/id/london-borough-council/sutton,London Borough of Sutton,23/06/2023,10012607,22.00, HIGH STREET VOUCHERS,HIGH STREET VOUCHERS,Resources,Miscellaneous Expenses,A49000,
http://opendatacommunities.org/id/london-borough-council/sutton,London Borough of Sutton,25/06/2023,10012607,20.00, OYSTER BUS AUTOLOAD,CL&G,Resources,"Grants, Contributions & Donations",A47005,
http://opendatacommunities.org/id/london-borough-council/sutton,London Borough of Sutton,16/06/2023,10012607,20.00, TFL OYSTER AUTO TOPUP,CL&G,Resources,"Grants, Contributions & Donations",A47005,
http://opendatacommunities.org/id/london-borough-council/sutton,London Borough of Sutton,13/06/2023,10012607,"10,500.00", CS MORRISONS GIFT CARD,CL&G,Resources,"Grants, Contributions & Donations",A47005,
http://opendatacommunities.org/id/london-borough-council/sutton,London Borough of Sutton,13/06/2023,10012607,"8,500.00", CS MORRISONS GIFT CARD,CL&G,Resources,"Grants, Contributions & Donations",A47005,
http://opendatacommunities.org/id/london-borough-council/sutton,London Borough of Sutton,26/05/2023,10012607,20.00, TFL OYSTER AUTO TOPUP,CL&G,Resources,"Grants, Contributions & Donations",A47005,
http://opendatacommunities.org/id/london-borough-council/sutton,London Borough of Sutton,18/06/2023,10012607,34.37, AMZNMKTPLACE,ITEMS REQUIRED FOR THE INNOVATION GATEWAY THAT SOME COVERS H&S - THE SAFETY GLASSES ARE 0% VAT,Resources,Equipment And Materials Repairs & Maintenance,A40051,
http://opendatacommunities.org/id/london-borough-council/sutton,London Borough of Sutton,15/06/2023,10012607,13.30, AMZNMKTPLACE AMAZON.CO,FOR THE INNOVATION GATEWAY - REQUIRED FOR GAS SAFETY ON CONNECTING BOTTLES,Resources,Equipment And Materials Repairs & Maintenance,A40051,
http://opendatacommunities.org/id/london-borough-council/sutton,London Borough of Sutton,02/06/2023,10012607,7.14, AMZNMKTPLACE,FOR THE INNOVATION GATEWAY - H&S SIGNAGE,Resources,Health & Safety Equipment,A40080,
http://opendatacommunities.org/id/london-borough-council/sutton,London Borough of Sutton,22/06/2023,10012607,3.78, AMZNMKTPLACE AMAZON.CO,SOFT SERVICES CM PURCHASES,Resources,Equipment And Materials Repairs & Maintenance,A40051,
http://opendatacommunities.org/id/london-borough-council/sutton,London Borough of Sutton,19/06/2023,10012607,8.32, AMZNMKTPLACE AMAZON.CO,CHILDREN PROTECTION FOR THE BOOKSHELF IN RECEPTION TO COVER THE EDGES AT CIVIC RECEPTION,Resources,Equipment And Materials Repairs & Maintenance,A40051,
http://opendatacommunities.org/id/london-borough-council/sutton,London Borough of Sutton,15/06/2023,10012607,18.32, AMZNMKTPLACE AMAZON.CO,CABLE WIRE PROTECTOR- FOR MEETING ROOMS,Resources,Equipment And Materials Repairs & Maintenance,A40051,
http://opendatacommunities.org/id/london-borough-council/sutton,London Borough of Sutton,04/06/2023,10012607,30.65, AMZNMKTPLACE,ACCESS FOR EMERGENCY VEHICLES FOR INCLUSION CENTRE,Resources,Equipment And Materials Repairs & Maintenance,A40051,
http://opendatacommunities.org/id/london-borough-council/sutton,London Borough of Sutton,19/06/2023,10012607,311.26, AMZNMKTPLACE,"ORDERED 2 TOYS FOR THE RECEPTION AT CIVIC CHILDRENS AREA , 4 WALL MOUNTED CIGARETTE BINS FOR CIVIC , SOME HEALTH AND SAFETY WALL SIGNS",Resources,Equipment And Materials Repairs & Maintenance,A40051,
http://opendatacommunities.org/id/london-borough-council/sutton,London Borough of Sutton,12/06/2023,10012607,1.50, FIND A WILL,WILL AND GRANT SEARCH,Resources,Legal Services,A44025,
http://opendatacommunities.org/id/london-borough-council/sutton,London Borough of Sutton,07/06/2023,10012607,1.50, FIND A WILL,WILL AND GRANT SEARCH,Resources,Legal Services,A44025,
http://opendatacommunities.org/id/london-borough-council/sutton,London Borough of Sutton,22/06/2023,10012607,99.00, SQ  PUBLIC POLICY EXCH,WEBINAR,Environment Housing and Neighbourhoods,Subscriptions,A47010,
http://opendatacommunities.org/id/london-borough-council/sutton,London Borough of Sutton,06/06/2023,10012607,23.08, SP ZERO PLUS,2x Concealed Extension Flush Bolts for North Tower Times Square car parl,Environment Housing and Neighbourhoods,Grounds Maintenance Contract,A28000,
http://opendatacommunities.org/id/london-borough-council/sutton,London Borough of Sutton,12/06/2023,10012607,89.00, ISTRUCTE LTD,PURCHASE OF CAR PARK DESIGN PUBLISHED BY INSTITUE OF STRUCTUAL ENGINEERS,Environment Housing and Neighbourhoods,Stationery,A43015,
http://opendatacommunities.org/id/london-borough-council/sutton,London Borough of Sutton,26/05/2023,10012607,20.00, TFL OYSTER AUTO TOPUP,"TOP UP FOR  ""REDACTED - PERSONAL DATA"" OYSTER CARD",Environment Housing and Neighbourhoods,Non-Staff Travel Subsistence & Training,A46006,
http://opendatacommunities.org/id/london-borough-council/sutton,London Borough of Sutton,22/06/2023,10012607,647.44, TRAVELODGE,EMERGENCY ACCOMMODATION FOR HOMELESS HOUSEHOLD,Environment Housing and Neighbourhoods,Bed & Breakfast,A56000,
http://opendatacommunities.org/id/london-borough-council/sutton,London Borough of Sutton,15/06/2023,10012607,658.27, TRAVELODGE,EMERGENCY ACCOMMODATION FOR HOMELESS HOUSEHOLD,Environment Housing and Neighbourhoods,Bed & Breakfast,A56000,
http://opendatacommunities.org/id/london-borough-council/sutton,London Borough of Sutton,09/06/2023,10012607,153.47, BKG HOTEL AT BOOKING.C,EMERGENCY ACCOMMODATION FOR HOMELESS HOUSEHOLD,Environment Housing and Neighbourhoods,Bed & Breakfast,A56000,
http://opendatacommunities.org/id/london-borough-council/sutton,London Borough of Sutton,08/06/2023,10012607,561.61, TRAVELODGE,EMERGENCY ACCOMMODATION FOR HOMELESS HOUSEHOLD,Environment Housing and Neighbourhoods,Bed & Breakfast,A56000,
http://opendatacommunities.org/id/london-borough-council/sutton,London Borough of Sutton,08/06/2023,10012607,35.07, BKG HOTEL AT BOOKING.C,EMERGENCY ACCOMMODATION FOR HOMELESS HOUSEHOLD,Environment Housing and Neighbourhoods,Bed & Breakfast,A56000,
http://opendatacommunities.org/id/london-borough-council/sutton,London Borough of Sutton,07/06/2023,10012607,61.55, BKG HOTEL AT BOOKING.C,EMERGENCY ACCOMMODATION FOR HOMELESS HOUSEHOLD,Environment Housing and Neighbourhoods,Bed & Breakfast,A56000,
http://opendatacommunities.org/id/london-borough-council/sutton,London Borough of Sutton,07/06/2023,10012607,57.06, BKG HOTEL AT BOOKING.C,EMERGENCY ACCOMMODATION FOR HOMELESS HOUSEHOLD,Environment Housing and Neighbourhoods,Bed & Breakfast,A56000,
http://opendatacommunities.org/id/london-borough-council/sutton,London Borough of Sutton,06/06/2023,10012607,78.32, TRAVELODGE,EMERGENCY ACCOMMODATION FOR HOMELESS HOUSEHOLD,Environment Housing and Neighbourhoods,Bed & Breakfast,A56000,
http://opendatacommunities.org/id/london-borough-council/sutton,London Borough of Sutton,01/06/2023,10012607,601.61, TRAVELODGE,EMERGENCY ACCOMMODATION FOR HOMELESS HOUSEHOLD,Environment Housing and Neighbourhoods,Bed & Breakfast,A56000,
http://opendatacommunities.org/id/london-borough-council/sutton,London Borough of Sutton,16/06/2023,10012607,11.00, SUTTON REGISTER OFFICE,BIRTH CERTIFICATE PAYMENT,People's Services,Equipment And Materials Purchase,A40000,
http://opendatacommunities.org/id/london-borough-council/sutton,London Borough of Sutton,06/06/2023,10012607,19.95, AMZNMKTPLACE,PAPER NEEDED FOR ACTIVITY (100%),People's Services,Equipment And Materials Purchase,A40000,
http://opendatacommunities.org/id/london-borough-council/sutton,London Borough of Sutton,06/06/2023,10012607,89.78, HTTP //KITMANUK.CO.UK/,FOOTBALL KIT FOR A YOUNG PERSON,People's Services,Miscellaneous Expenses,A49000,
http://opendatacommunities.org/id/london-borough-council/sutton,London Borough of Sutton,16/06/2023,10012607,553.00, THRIIVER LIMITED,EQUIPMENT FOR A STAFF MEMBER AFTER AN ASSESMENT,People's Services,Miscellaneous Expenses,A49000,
http://opendatacommunities.org/id/london-borough-council/sutton,London Borough of Sutton,08/06/2023,10012607,238.90, BKG HOTEL AT BOOKING.C,HOTEL STAY FOR A SOCIAL WORKER FOR A VISIT,People's Services,Miscellaneous Expenses,A49000,
http://opendatacommunities.org/id/london-borough-council/sutton,London Borough of Sutton,06/06/2023,10012607,95.00, SUTTON APPLIANCES,LS COOKER,People's Services,Miscellaneous Expenses,A49000,
http://opendatacommunities.org/id/london-borough-council/sutton,London Borough of Sutton,01/06/2023,10012607,82.50, HM PASSPORT OFFICE,RM PASSPORT APPLICATION,People's Services,Miscellaneous Expenses,A49000,
http://opendatacommunities.org/id/london-borough-council/sutton,London Borough of Sutton,22/06/2023,10012607,12.79, MCDONALDS,MW ACTIVITY,People's Services,Miscellaneous Expenses,A49000,
http://opendatacommunities.org/id/london-borough-council/sutton,London Borough of Sutton,26/05/2023,10012607,637.45, STERLINGFLOORSLTD,KK CARPETS SETTING UP,People's Services,Set Up Costs - Children Leaving Care,A61021,
http://opendatacommunities.org/id/london-borough-council/sutton,London Borough of Sutton,19/06/2023,10012607,275.00, WWW.ARGOS.CO.UK,CG SET UP,People's Services,Set Up Costs - Children Leaving Care,A61021,
http://opendatacommunities.org/id/london-borough-council/sutton,London Borough of Sutton,20/06/2023,10012607,46.00, PRIMARK,EG,People's Services,Miscellaneous Expenses,A49000,
http://opendatacommunities.org/id/london-borough-council/sutton,London Borough of Sutton,20/06/2023,10012607,15.82, KFC,EG ACTIVITY,People's Services,Miscellaneous Expenses,A49000,
http://opendatacommunities.org/id/london-borough-council/sutton,London Borough of Sutton,20/06/2023,10012607,10.00, SNAPPY SNAPS,EG PHOTOS,People's Services,Miscellaneous Expenses,A49000,
http://opendatacommunities.org/id/london-borough-council/sutton,London Borough of Sutton,20/06/2023,10012607,17.00, VIMALS NEWS,EG TRAVEL,People's Services,C.C.A Travel & Subsistance,A61010,
http://opendatacommunities.org/id/london-borough-council/sutton,London Borough of Sutton,26/05/2023,10012607,20.58, HOLLYWOOD BOWL,BOWLING,People's Services,C.C.A Travel & Subsistance,A61010,
http://opendatacommunities.org/id/london-borough-council/sutton,London Borough of Sutton,09/06/2023,10012607,29.39, AMZNMKTPLACE,REQUIRED FOR WILLOW RISE YOUNG PERSON (100%),People's Services,Equipment And Materials Purchase,A40000,
http://opendatacommunities.org/id/london-borough-council/sutton,London Borough of Sutton,16/06/2023,10012607,29.16, RING YEARLY PLAN,RING GO SUBSCRIPTION,People's Services,Subscriptions,A47010,
http://opendatacommunities.org/id/london-borough-council/sutton,London Borough of Sutton,15/06/2023,10012607,5.42, ASDA GROCERIES ONLINE,"WILLOW RISE FOOD SHOPPING REFUND, NO RECEIPT PROVIDED",People's Services,Miscellaneous Expenses,A49000,
http://opendatacommunities.org/id/london-borough-council/sutton,London Borough of Sutton,21/06/2023,10012607,18.74, HPI INSTANT INK UK,INK PAYMENT FOR WILLOW RISE CHILDRENS HOME,People's Services,Miscellaneous Expenses,A49000,
http://opendatacommunities.org/id/london-borough-council/sutton,London Borough of Sutton,08/06/2023,10012607,99.58, ASDA GROCERIES ONLINE,WILLOW RISE FOOD SHOPPING,People's Services,Miscellaneous Expenses,A49000,
http://opendatacommunities.org/id/london-borough-council/sutton,London Borough of Sutton,08/06/2023,10012607,74.99, B&Q MARKETPLACE,WILLOW RISE GARDEN FURNITURE,People's Services,Miscellaneous Expenses,A49000,
http://opendatacommunities.org/id/london-borough-council/sutton,London Borough of Sutton,08/06/2023,10012607,19.96, WWW.ARGOS.CO.UK,ITEMS FOR A NEW HOME,People's Services,Miscellaneous Expenses,A49000,
http://opendatacommunities.org/id/london-borough-council/sutton,London Borough of Sutton,13/06/2023,10012607,68.29, WWW.ARGOS.CO.UK,ITEMS REQUIRED FOR A YOUNG PERSON,People's Services,Miscellaneous Expenses,A49000,
http://opendatacommunities.org/id/london-borough-council/sutton,London Borough of Sutton,09/06/2023,10012607,112.49, B&Q MARKETPLACE,WILLOW RISE GARDEN FURNITURE,People's Services,Miscellaneous Expenses,A49000,
http://opendatacommunities.org/id/london-borough-council/sutton,London Borough of Sutton,31/05/2023,10012607,45.00, THECLIMBINGEXPERIENCE,CLIMBING EXPERIENCE PAYMENT,People's Services,Miscellaneous Expenses,A49000,
http://opendatacommunities.org/id/london-borough-council/sutton,London Borough of Sutton,31/05/2023,10012607,289.00, CURRYS ONLINE,NINTENDO SWITCH PAYMENT,People's Services,Miscellaneous Expenses,A49000,
http://opendatacommunities.org/id/london-borough-council/sutton,London Borough of Sutton,31/05/2023,10012607,83.00, SQ  GATWICK ESCAPE ROO,ESCAPE ROOM EXPERIENCE PAYMENT,People's Services,Miscellaneous Expenses,A49000,
http://opendatacommunities.org/id/london-borough-council/sutton,London Borough of Sutton,01/06/2023,10012607,119.10, ASDA GROCERIES ONLINE,ASDA SHOPPING PAYMENT,People's Services,Miscellaneous Expenses,A49000,
http://opendatacommunities.org/id/london-borough-council/sutton,London Borough of Sutton,01/06/2023,10012607,59.99, CURRYS ONLINE,NINTENDO SWITCH CONTROLLERS,People's Services,Miscellaneous Expenses,A49000,
http://opendatacommunities.org/id/london-borough-council/sutton,London Borough of Sutton,22/06/2023,10012607,62.12, ALFRESHCO,REQUIRED FOR A YOUNG PERSON,People's Services,Miscellaneous Expenses,A49000,
http://opendatacommunities.org/id/london-borough-council/sutton,London Borough of Sutton,11/06/2023,10012607,25.09, AMZNMKTPLACE,"SPLIT - UPBLEND OUTDOORS PREMIUM WIND CHIMES FOR OUTSIDE, WINDCHIMES OUTDOORS, WINDCHIMES UNIQUE OUTDOOR CLEARANCE, GIFTS GARDENING, GARDENING MOTHER'S DAY, G (100%)",People's Services,Miscellaneous Expenses,A49000,
http://opendatacommunities.org/id/london-borough-council/sutton,London Borough of Sutton,11/06/2023,10012607,16.95, AMZNMKTPLACE,"SPLIT - SUBMERSIBLE LED LIGHTS,MULTICOLOR RGB 10-LED LIGHTS WATERPROOF UNDERWATER LIGHT LED BASE FOR VASE BASE,AQUARIUM, POND, GARDEN, FISH TANK,HOME PARTY, D (30.86%)",People's Services,Miscellaneous Expenses,A49000,
http://opendatacommunities.org/id/london-borough-council/sutton,London Borough of Sutton,11/06/2023,10012607,26.99, AMZNMKTPLACE,"SPLIT - SOLAR LIGHTS OUTDOOR GARDEN, 6 PACK SOLAR GARDEN LIGHTS WITH MULTI-COLOUR CHANGING+WARM WHITE MODES WATERPROOF PATHWAY LIGHTS ORNAMENTS OUTDOOR SOLAR (49.14%)",People's Services,Miscellaneous Expenses,A49000,
http://opendatacommunities.org/id/london-borough-council/sutton,London Borough of Sutton,11/06/2023,10012607,10.99, AMZNMKTPLACE,"SPLIT - GREEN THUMBZ SMALL DECORATIVE SQUARE PLANT POTS, COLOURFUL PLASTIC PLANT POTS FOR DECORATION, INDOOR AND OUTDOOR SEED FLOWER AND PLANTS POTS WITH TRAY (20%)",People's Services,Miscellaneous Expenses,A49000,
http://opendatacommunities.org/id/london-borough-council/sutton,London Borough of Sutton,11/06/2023,10012607,20.99, AMZNMKTPLACE,"SPLIT - HYDROGARDEN TRAMPOLINE SPRINKLERS TRAMPOLINE SPRAY WATER PARK FUN SUMMER OUTDOOR WATER GAME TRAMPOLINE ACCESSORIES, MADE TO ATTACH ON TRAMPOLINE SAFET (100%)",People's Services,Miscellaneous Expenses,A49000,
http://opendatacommunities.org/id/london-borough-council/sutton,London Borough of Sutton,11/06/2023,10012607,7.99, AMZNMKTPLACE,"SPLIT - RUNMEIHE 24PCS MIRROR WALL STICKERS DIY DECOR, HEXAGON LARGE SILVER ACRYLIC PLASTIC MIRROR TILES KAWAII ART DECORATION ACCESSORIES FOR LIVING ROOM B (100%)",People's Services,Miscellaneous Expenses,A49000,
http://opendatacommunities.org/id/london-borough-council/sutton,London Borough of Sutton,09/06/2023,10012607,9.99, AMZNMKTPLACE,SPLIT - KANDYTOYS 25CM FOAM WATER SQUIRTER - KIDS WATER SHOOTER TOYS FOR SUMMER OUTDOOR PLAY (100%),People's Services,Miscellaneous Expenses,A49000,
http://opendatacommunities.org/id/london-borough-council/sutton,London Borough of Sutton,09/06/2023,10012607,12.14, AMZNMKTPLACE,SPLIT - JAR MELO JARMELO ROCK PAINTING KIT; NON-TOXIC; HIDE AND SEEK ROCK ART; CREATIVE COLORFUL MAGIC STONE; CREATIVE GIFT; ARTS AND CRAFTS KITS FOR ADULTS AND KIDS (100%),People's Services,Miscellaneous Expenses,A49000,
http://opendatacommunities.org/id/london-borough-council/sutton,London Borough of Sutton,09/06/2023,10012607,131.99, WWW.TTS-GROUPS.CO.UK,OUTDOOR CHALKBOARD PAYMENT FOR CLIENT,People's Services,Miscellaneous Expenses,A49000,
http://opendatacommunities.org/id/london-borough-council/sutton,London Borough of Sutton,15/06/2023,10012607,143.85, ASDA GROCERIES ONLINE,ASDA FOOD SHOP PAYMENT,People's Services,Miscellaneous Expenses,A49000,
http://opendatacommunities.org/id/london-borough-council/sutton,London Borough of Sutton,24/06/2023,10012607,31.98, AMZNMKTPLACE AMAZON.CO,"SPLIT - MIRACLE-GRO PERFORMANCE ORGANIC, FRUIT & VEGETABLE COMPOST - 40 LITRE BAG (50%)",People's Services,Miscellaneous Expenses,A49000,
http://opendatacommunities.org/id/london-borough-council/sutton,London Borough of Sutton,24/06/2023,10012607,31.98, AMZNMKTPLACE AMAZON.CO,"SPLIT - MIRACLE-GRO PREMIUM ALL PURPOSE COMPOST, 50L (50%)",People's Services,Miscellaneous Expenses,A49000,
http://opendatacommunities.org/id/london-borough-council/sutton,London Borough of Sutton,23/06/2023,10012607,21.93, AMZNMKTPLACE,"SPLIT - WILD BIRD FEEDER POLE. FEEDING STATION WITH DECORATIVE FINIAL & TWO HOOKS FOR ANY FEEDERS SUCH AS SEED, PEANUT, SUNFLOWER & FATBALL. METAL, FREESTANDI (61.05%)",People's Services,Miscellaneous Expenses,A49000,
http://opendatacommunities.org/id/london-borough-council/sutton,London Borough of Sutton,23/06/2023,10012607,13.99, AMZNMKTPLACE,"SPLIT - BIRD FEEDERS FOR OUTSIDE, BIRD FEEDER, WILD BIRD SEED FOR OUTSIDE FEEDERS, SQUIRREL PROOF BIRDS FEEDER, GARDEN DECORATION BLACK (38.95%)",People's Services,Miscellaneous Expenses,A49000,
http://opendatacommunities.org/id/london-borough-council/sutton,London Borough of Sutton,23/06/2023,10012607,59.98, AMZNMKTPLACE AMAZON.CO,"SPLIT - RAISED GARDEN BED PLANTER BOX OUTDOOR, PATIO GREENHOUSE FLOWER VEGETABLE GROW BOX WITH LID & LEGS (GREEN) (100%)",People's Services,Miscellaneous Expenses,A49000,
http://opendatacommunities.org/id/london-borough-council/sutton,London Borough of Sutton,22/06/2023,10012607,111.00, CHESSINGTON ADVENTURES,CHESSINGTON ADVENTURES TICKET PAYMENT,People's Services,Miscellaneous Expenses,A49000,
http://opendatacommunities.org/id/london-borough-council/sutton,London Borough of Sutton,22/06/2023,10012607,143.75, ASDA GROCERIES ONLINE,Groceries,People's Services,Miscellaneous Expenses,A49000,
http://opendatacommunities.org/id/london-borough-council/sutton,London Borough of Sutton,22/06/2023,10012607,74.00, CHESSINGTON ADVENTURES,CHESSINGTON ADVENTURES TICKET PAYMENT,People's Services,Miscellaneous Expenses,A49000,
http://opendatacommunities.org/id/london-borough-council/sutton,London Borough of Sutton,17/06/2023,10012607,15.99, NETFLIX,NETFLIX PAYMENT FOR CLIENT,People's Services,Miscellaneous Expenses,A49000,
http://opendatacommunities.org/id/london-borough-council/sutton,London Borough of Sutton,31/05/2023,10012607,10.99, AMZNMKTPLACE,"SPLIT - USB PC HEADSETS WITH MICROPHONE NOISE CANCELLING MIC & AUDIO CONTROLS, WIRED STEREO COMPUTER HEADPHONE ADJUSTABLE HEADBAND PC HEADSET EARPHONE FOR OFF (100%)",People's Services,Miscellaneous Expenses,A49000,
http://opendatacommunities.org/id/london-borough-council/sutton,London Borough of Sutton,31/05/2023,10012607,19.56, AMZNMKTPLACE,"SPLIT - LIVIVO SET OF 4 HI BALL PLASTIC ACRYLIC DRINK TUMBLERS WITH SWIRL DESIGN - STACKABLE GLASSES FOR PICNICS, BBQ'S, POOLSIDE, CAMPING, CHILDREN'S PARTIES OR JUST EVERYDAY USE (SET OF 4, TRANSPARENT) (100%)",People's Services,Miscellaneous Expenses,A49000,
http://opendatacommunities.org/id/london-borough-council/sutton,London Borough of Sutton,31/05/2023,10012607,59.97, WWW.JAVAWHISKERS.CO.UK,CAT CAFE PAYMENT,People's Services,Miscellaneous Expenses,A49000,
http://opendatacommunities.org/id/london-borough-council/sutton,London Borough of Sutton,07/06/2023,10012607,27.46, WWW.ARGOS.CO.UK,ITEMS REQUIRED FOR A NEW HOME,People's Services,Miscellaneous Expenses,A49000,
http://opendatacommunities.org/id/london-borough-council/sutton,London Borough of Sutton,08/06/2023,10012607,69.97, AMZNMKTPLACE,IZ,People's Services,Miscellaneous Expenses,A49000,
http://opendatacommunities.org/id/london-borough-council/sutton,London Borough of Sutton,08/06/2023,10012607,10.79, WWW.ARGOS.CO.UK,ITEMS REQUIRED FOR A YOUNG PERSON,People's Services,Set Up Costs - Children Leaving Care,A61021,
http://opendatacommunities.org/id/london-borough-council/sutton,London Borough of Sutton,08/06/2023,10012607,-12.95, WWW.ARGOS.CO.UK,ITEMS REQUIRED FOR A YOUNG PERSON,People's Services,Set Up Costs - Children Leaving Care,A61021,
http://opendatacommunities.org/id/london-borough-council/sutton,London Borough of Sutton,17/06/2023,10012607,159.90, ZOOM.US 888-799-9666,SUBSCRIPTION FOR A TEAM,People's Services,Subscriptions,A47010,
http://opendatacommunities.org/id/london-borough-council/sutton,London Borough of Sutton,30/05/2023,10012607,159.90, ZOOM.US 888-799-9666,SUBSCRIPTION REQUIRED FOR A TEAM A47010 G03100,People's Services,Subscriptions,A47010,
http://opendatacommunities.org/id/london-borough-council/sutton,London Borough of Sutton,02/06/2023,10012607,11.00, LEEDS CITY COUNCIL,BIRTH CERTIFICATE PURCHASE FOR SOCIAL WORKER.,People's Services,Miscellaneous Expenses,A49000,
http://opendatacommunities.org/id/london-borough-council/sutton,London Borough of Sutton,02/06/2023,10012607,11.00, L B SOUTHWARK - INT,BIRTH CERTIFICATE PURCHASE FOR SOCIAL WORKER.,People's Services,Miscellaneous Expenses,A49000,
http://opendatacommunities.org/id/london-borough-council/sutton,London Borough of Sutton,09/06/2023,10012607,141.67, POST OFFICE COUNTER,PASSPORT APPLLCATION SEND OFF,People's Services,Equipment And Materials Purchase,A40000,
http://opendatacommunities.org/id/london-borough-council/sutton,London Borough of Sutton,27/05/2023,10012607,14.95, AMZNMKTPLACE,"SPLIT - MULTI-FAITH CALENDAR 2023. A2 POSTER. RELIGIOUS FESTIVALS AND HOLY DAYS ARE DESCRIBED THROUGHOUT THE YEAR, MAKING THIS A USEFUL RESOURCE FOR THOSE LOOKING TO PROMOTE FAITH AND DIVERSITY. (82.14%)",People's Services,Miscellaneous Expenses,A49000,
http://opendatacommunities.org/id/london-borough-council/sutton,London Borough of Sutton,27/05/2023,10012607,3.25, AMZNMKTPLACE,BALANCING ENTRY AMOUNT (17.86%),People's Services,Miscellaneous Expenses,A49000,
http://opendatacommunities.org/id/london-borough-council/sutton,London Borough of Sutton,30/05/2023,10012607,5.99, AMZNBUSINESS MT6R93AM5,SPLIT - WHICH FOOD WILL YOU CHOOSE? (33.15%),People's Services,Miscellaneous Expenses,A49000,
http://opendatacommunities.org/id/london-borough-council/sutton,London Borough of Sutton,30/05/2023,10012607,6.99, AMZNBUSINESS MT6R93AM5,SPLIT - WHY SHOULD I BRUSH MY TEETH? (VERY FIRST LIFT-THE-FLAP QUESTIONS AND ANSWERS): 1 (VERY FIRST QUESTIONS AND ANSWERS) (38.68%),People's Services,Miscellaneous Expenses,A49000,
http://opendatacommunities.org/id/london-borough-council/sutton,London Borough of Sutton,30/05/2023,10012607,5.09, AMZNBUSINESS MT6R93AM5,SPLIT - THE CHILDREN'S BOOK OF HEALTHY EATING (STAR REWARDS) (STAR REWARDS - LIFE SKILLS FOR KIDS) (28.17%),People's Services,Miscellaneous Expenses,A49000,
http://opendatacommunities.org/id/london-borough-council/sutton,London Borough of Sutton,29/05/2023,10012607,46.14, AMZNMKTPLACE,SPLIT - WORLD RELIGION POSTERS - SET OF 8 | RELIGIOUS EDUCATION POSTERS | LAMINATED GLOSS PAPER (A1) | (100%),People's Services,Miscellaneous Expenses,A49000,
http://opendatacommunities.org/id/london-borough-council/sutton,London Borough of Sutton,29/05/2023,10012607,3.99, AMZNMKTPLACE,SPLIT - WORLD RELIGIONS (18.09%),People's Services,Miscellaneous Expenses,A49000,
http://opendatacommunities.org/id/london-borough-council/sutton,London Borough of Sutton,29/05/2023,10012607,7.66, AMZNMKTPLACE,SPLIT - WELCOME TO OUR WORLD: A CELEBRATION OF CHILDREN EVERYWHERE! (34.72%),People's Services,Miscellaneous Expenses,A49000,
http://opendatacommunities.org/id/london-borough-council/sutton,London Borough of Sutton,29/05/2023,10012607,10.41, AMZNMKTPLACE,SPLIT - A YEAR FULL OF CELEBRATIONS AND FESTIVALS: OVER 90 FUN AND FABULOUS FESTIVALS FROM AROUND THE WORLD! (6) (WORLD FULL OF...) (47.19%),People's Services,Miscellaneous Expenses,A49000,
http://opendatacommunities.org/id/london-borough-council/sutton,London Borough of Sutton,27/05/2023,10012607,10.48, AMZNMKTPLACE,SPLIT - FROM ISLAM TO CHRISTIAN - RELIGIOUS FESTIVALS FROM AROUND THE WORLD - RELIGION FOR KIDS | CHILDREN'S RELIGION BOOKS (100%),People's Services,Miscellaneous Expenses,A49000,
http://opendatacommunities.org/id/london-borough-council/sutton,London Borough of Sutton,23/06/2023,10012607,110.00, WALLINGTON CARS & COUR,TAXI PAYMENT FOR CLIENT,People's Services,C.C.A Travel & Subsistance,A61010,
http://opendatacommunities.org/id/london-borough-council/sutton,London Borough of Sutton,07/06/2023,10012607,209.60, WWW.BIGYELLOW.CO.UK,BIG YELLOW,People's Services,Client Care/Assistance,A61011,
http://opendatacommunities.org/id/london-borough-council/sutton,London Borough of Sutton,02/06/2023,10012607,104.03, STORAGEMART UK #5215,STORAGE FOR A CLIENT,People's Services,Client Care/Assistance,A61011,
http://opendatacommunities.org/id/london-borough-council/sutton,London Borough of Sutton,13/06/2023,10012607,-220.00, IKEA LTD SHOP ONLINE,"NEEDS TO BE JTED FROM G03270 TO M61723 IKEA, NEW HOME, CAPITAL CODE NOT ON THE WEBSITE",People's Services,Equipment And Materials Purchase,A40000,
http://opendatacommunities.org/id/london-borough-council/sutton,London Borough of Sutton,14/06/2023,10012607,216.67, WWW.ARGOS.CO.UK,"NEEDS TO BE JTED FROM G03270 TO M61723 IKEA, NEW HOME, CAPITAL CODE NOT ON THE WEBSITE",People's Services,Miscellaneous Expenses,A49000,
http://opendatacommunities.org/id/london-borough-council/sutton,London Borough of Sutton,26/05/2023,10012607,87.50, IKEA LTD SHOP ONLINE,IKEA BED SLAT ORDER,People's Services,Miscellaneous Expenses,A49000,
http://opendatacommunities.org/id/london-borough-council/sutton,London Borough of Sutton,12/06/2023,10012607,140.00, IKEA LTD SHOP ONLINE,IKEA,People's Services,Miscellaneous Expenses,A49000,
http://opendatacommunities.org/id/london-borough-council/sutton,London Borough of Sutton,06/06/2023,10012607,75.00, HIGH STREET VOUCHERS,GIFT CARD PAYMENT FOR YOUNG PERSON,People's Services,Miscellaneous Expenses,A49000,
http://opendatacommunities.org/id/london-borough-council/sutton,London Borough of Sutton,06/06/2023,10012607,75.00, HIGH STREET VOUCHERS,GIFT CARD PAYMENT FOR YOUNG PERSON,People's Services,Miscellaneous Expenses,A49000,
http://opendatacommunities.org/id/london-borough-council/sutton,London Borough of Sutton,06/06/2023,10012607,75.00, HIGH STREET VOUCHERS,GIFT CARD PAYMENT FOR YOUNG PERSON,People's Services,Miscellaneous Expenses,A49000,
http://opendatacommunities.org/id/london-borough-council/sutton,London Borough of Sutton,06/06/2023,10012607,234.00, IKEA LTD SHOP ONLINE,IKEA FURNITURE PAYMENT FOR YOUNG PERSON,People's Services,Miscellaneous Expenses,A49000,
http://opendatacommunities.org/id/london-borough-council/sutton,London Borough of Sutton,01/06/2023,10012607,725.34, SUTTON & EAST SURREY W,WATER BILL PAYMENT FOR YOUNG PERSON,People's Services,Client Care/Assistance,A61011,
http://opendatacommunities.org/id/london-borough-council/sutton,London Borough of Sutton,19/06/2023,10012607,129.99, AMZNMKTPLACE,FAN REQUIRED 129.99 A49000 G03400 9999 AMAZON.PDF (100%),People's Services,Miscellaneous Expenses,A49000,
http://opendatacommunities.org/id/london-borough-council/sutton,London Borough of Sutton,23/06/2023,10012607,6.95, AMZNMKTPLACE AMAZON.CO,"SPLIT - EATASTY MULTI-PURPOSE VINYL GLOVES, POWDER FREE, DISPOSABLE, EXTRA STRONG - BOX OF 100 - BLUE - UK SELLER(M) (100%)",People's Services,Miscellaneous Expenses,A49000,
http://opendatacommunities.org/id/london-borough-council/sutton,London Borough of Sutton,25/06/2023,10012607,6.49, AMZNMKTPLACE AMAZON.CO,"SPLIT - 6 PIECE DOG COOKIE CUTTER SET, CARTOON DOG BONE, PAW PRINT ANIMAL COOKIE CUTTERS DOG SHAPED MOULD FOR DIY BAKING BISCUIT PASTRY CUTTER (28.91%)",People's Services,Miscellaneous Expenses,A49000,
http://opendatacommunities.org/id/london-borough-council/sutton,London Borough of Sutton,25/06/2023,10012607,7.98, AMZNMKTPLACE AMAZON.CO,SPLIT - STAINLESS STEEL BALLOON WHISK SMALL MEDIUM & LARGE BALL PROFESSIONAL HEAVY DUTY WIRE-WHISK FOR BLENDING WHISKING BEATING STIRRING BAKING COOKING STAIN (35.55%),People's Services,Miscellaneous Expenses,A49000,
http://opendatacommunities.org/id/london-borough-council/sutton,London Borough of Sutton,25/06/2023,10012607,7.98, AMZNMKTPLACE AMAZON.CO,"SPLIT - 12 INCH LONG WOODEN SPOONS FOR COOKING - OVAL WOOD MIXING SPOONS FOR BAKING, COOKING, STIRRING - SAUCE SPOONS MADE OF NATURAL BEECHWOOD - SET OF 3 (35.54%)",People's Services,Miscellaneous Expenses,A49000,
http://opendatacommunities.org/id/london-borough-council/sutton,London Borough of Sutton,25/06/2023,10012607,11.98, AMZNMKTPLACE AMAZON.CO,SPLIT - MOLLY MALOU� BUTCHER STRIPE DOUBLE OVEN GLOVES QUILTED HEAVY DUTY COOKING POTHOLDER HEAT RESISTANT MITT 18X90CM (NAVY) (22.55%),People's Services,Miscellaneous Expenses,A49000,
http://opendatacommunities.org/id/london-borough-council/sutton,London Borough of Sutton,25/06/2023,10012607,15.29, AMZNMKTPLACE AMAZON.CO,"SPLIT - 30 PCS ALUMINIUM FOIL TRAYS WITH LIDS AND BARBECUE BRUSH, 22X16X5CM/1000ML FOIL FOOD CONTAINERS, CATERING TRAYS FOR BAKING, ROASTING, BBQ, BROILING, C (28.78%)",People's Services,Miscellaneous Expenses,A49000,
http://opendatacommunities.org/id/london-borough-council/sutton,London Borough of Sutton,25/06/2023,10012607,9.97, AMZNMKTPLACE AMAZON.CO,SPLIT - DIGITAL KITCHEN SCALES 3000G / 0.1G HIGH-PRECISION FOOD SCALES WITH BACKLIT LCD DISPLAY STAINLESS STEEL MULTIFUNCTIONAL SCALE WITH 2 WEIGHING PANS BAT (18.77%),People's Services,Miscellaneous Expenses,A49000,
http://opendatacommunities.org/id/london-borough-council/sutton,London Borough of Sutton,25/06/2023,10012607,15.88, AMZNMKTPLACE AMAZON.CO,"SPLIT - INNOGEAR 4 PACKS APRON, UNISEX ADJUSTABLE APRON WITH POCKETS FOR HOME KITCHEN COOKING, RESTAURANT, COFFEE HOUSE (BLACK, POLYESTER) (29.9%)",People's Services,Miscellaneous Expenses,A49000,
http://opendatacommunities.org/id/london-borough-council/sutton,London Borough of Sutton,31/05/2023,10012607,87.93, TEAM SPORT KARTING,GO KARTING PAYMENT,People's Services,Client Care/Assistance,A61011,
http://opendatacommunities.org/id/london-borough-council/sutton,London Borough of Sutton,12/06/2023,10012607,49.00, OUTSOURCED EVENTS," ""REDACTED - PERSONAL DATA"" - ROYAL COLLEGE OF OCCUPATIONAL THERAPISTS CONFERENCE 14TH&15TH JUNE 2023",People's Services,Staff Development And Training,A15022,
http://opendatacommunities.org/id/london-borough-council/sutton,London Borough of Sutton,06/06/2023,10012607,69.00, OUTSOURCED EVENTS," ""REDACTED - PERSONAL DATA"" - ROYAL COLLEGE OF OCCUPATIONAL THERAPISTS CONFERENCE 14TH&15TH JUNE 2023",People's Services,Staff Development And Training,A15022,
http://opendatacommunities.org/id/london-borough-council/sutton,London Borough of Sutton,05/06/2023,10012607,793.25, S.C.T.S,SOCIAL CARE TRAINING SOLUTIONS X3 COURSES ,People's Services,Staff Development And Training,A15022,
http://opendatacommunities.org/id/london-borough-council/sutton,London Borough of Sutton,05/06/2023,10012607,698.25, S.C.T.S,SOCIAL CARE TRAINING SOLUTIONS X3 COURSES,People's Services,Staff Development And Training,A15022,
http://opendatacommunities.org/id/london-borough-council/sutton,London Borough of Sutton,14/06/2023,10012607,29.50, VIVA ACCESS LTD,"TRAINING COURSE FOR  ""REDACTED - PERSONAL DATA""",People's Services,Staff Development And Training,A15022,
http://opendatacommunities.org/id/london-borough-council/sutton,London Borough of Sutton,14/06/2023,10012607,35.00, VIVA ACCESS LTD,"TRAINING COURSE FOR ""REDACTED - PERSONAL DATA""",People's Services,Staff Development And Training,A15022,
http://opendatacommunities.org/id/london-borough-council/sutton,London Borough of Sutton,14/06/2023,10012607,35.00, VIVA ACCESS LTD,"TRAINING COURSE FOR  ""REDACTED - PERSONAL DATA""",People's Services,Staff Development And Training,A15022,
http://opendatacommunities.org/id/london-borough-council/sutton,London Borough of Sutton,14/06/2023,10012607,29.50, VIVA ACCESS LTD,"TRAINING COURSE FOR  ""REDACTED - PERSONAL DATA""",People's Services,Staff Development And Training,A15022,
http://opendatacommunities.org/id/london-borough-council/sutton,London Borough of Sutton,14/06/2023,10012607,165.00, EDGE TRAINING LTD,CONFERENCE BOOKING,People's Services,Staff Development And Training,A15022,
http://opendatacommunities.org/id/london-borough-council/sutton,London Borough of Sutton,08/06/2023,10012607,258.98, HIPPOBAG,HIPPOBAG,People's Services,Client Care/Assistance,A61011,
http://opendatacommunities.org/id/london-borough-council/sutton,London Borough of Sutton,12/06/2023,10012607,27.60, AMZNBUSINESS GJ6TI9255,MATERIALS FOR THERAPEUTIC HUB (100%),People's Services,Miscellaneous Expenses,A49000,
http://opendatacommunities.org/id/london-borough-council/sutton,London Borough of Sutton,26/05/2023,10012607,349.00, PREMIER INN,HOTEL BOOKING,People's Services,C.C.A Travel & Subsistance,A61010,
http://opendatacommunities.org/id/london-borough-council/sutton,London Borough of Sutton,09/06/2023,10012607,519.58, PREMIER INN,HOTEL REQUIRED FOR A CLIENT,People's Services,C.C.A Travel & Subsistance,A61010,
http://opendatacommunities.org/id/london-borough-council/sutton,London Borough of Sutton,01/06/2023,10012607,25.00, WALLINGTON CARS & COUR,TAXI BOOKING PAYMENT,People's Services,Client Care/Assistance,A61011,
http://opendatacommunities.org/id/london-borough-council/sutton,London Borough of Sutton,23/06/2023,10012607,83.02, PAVILION PUBLISHING,DEMENTIA ASSESSMENT TOOL,People's Services,Miscellaneous Expenses,A49000,
http://opendatacommunities.org/id/london-borough-council/sutton,London Borough of Sutton,12/06/2023,10012607,50.00, ALLIUM,FUNERALWREATHSHEAD,Resources,Funeral Expenses,A44220,
http://opendatacommunities.org/id/london-borough-council/sutton,London Borough of Sutton,24/06/2023,10012607,6.00, TIM S,TIMS REFRESHMENTS SUSTAINABLE 6.00 240623,Health and Wellbeing,Publicity,A44266,
http://opendatacommunities.org/id/london-borough-council/sutton,London Borough of Sutton,02/06/2023,10012607,768.24, PPL PRS LTD,PPL PRS LICENCE TO APRIL 2024,Health and Wellbeing,Registration & Licence Fees Payable,A44267,
http://opendatacommunities.org/id/london-borough-council/sutton,London Borough of Sutton,13/06/2023,10012607,34.98, YOU GARDEN,"PLANT ""REDACTED - PERSONAL DATA""",Health and Wellbeing,Hospitality,A46020,
http://opendatacommunities.org/id/london-borough-council/sutton,London Borough of Sutton,08/06/2023,10012607,13.32, RYMAN 1176,RYMAN 15.99 080623 PHOTOGRAPHY PAPER,Health and Wellbeing,Equipment And Materials Purchase,A40000,
http://opendatacommunities.org/id/london-borough-council/sutton,London Borough of Sutton,08/06/2023,10012607,10.82, RYMAN 1176,RYMAN 12.99 080623 PHOTOGRAPHY PAPER,Health and Wellbeing,Equipment And Materials Purchase,A40000,
http://opendatacommunities.org/id/london-borough-council/sutton,London Borough of Sutton,07/06/2023,10012607,121.87, CAPITALHAIRANDBEAUTY.C,CAPITAL HAIR & BEAUTY 070623 146.24,Health and Wellbeing,Equipment And Materials Purchase,A40000,
http://opendatacommunities.org/id/london-borough-council/sutton,London Borough of Sutton,01/06/2023,10012607,71.78, GSUITE_SUTTONCOLLEGE.A,GOOGLE CLOUD EMEA LIMITED 4731610033,Health and Wellbeing,Subscriptions,A47010,
http://opendatacommunities.org/id/london-borough-council/sutton,London Borough of Sutton,21/06/2023,10012607,5.42, WILKO RETAIL LIMITED,Wilko Wipes,Health and Wellbeing,Equipment And Materials Purchase,A40000,
http://opendatacommunities.org/id/london-borough-council/sutton,London Borough of Sutton,21/06/2023,10012607,96.00, HOBBYCRAFT TRADING LIM,HOBBYCRAFT 200623 96.00,Health and Wellbeing,Publicity,A44266,
http://opendatacommunities.org/id/london-borough-council/sutton,London Borough of Sutton,22/06/2023,10012607,8.99, AMZNMKTPLACE AMAZON.CO,SPLIT - PRONTO SEED FLOWER BUMPER PACK - FOR PLANTING NOW - GROW YOUR OWN KIT - CONTAINING 24 DIFFERENT VARIETIES OF FLOWERS - OVER 3100 SEEDS - ATTRACT BUTTE (20.97%),Health and Wellbeing,Publicity,A44266,
http://opendatacommunities.org/id/london-borough-council/sutton,London Borough of Sutton,22/06/2023,10012607,19.98, AMZNMKTPLACE AMAZON.CO,SPLIT - HERBAL AGE GROW YOUR OWN TOMATOES KIT - 14 HEIRLOOM TOMATO SEED VARIETIES - 900+ TOMATO SEEDS FOR PLANTING UK - YEAR-ROUND TOMATO PLANTS GROWING INDOO (46.61%),Health and Wellbeing,Publicity,A44266,
http://opendatacommunities.org/id/london-borough-council/sutton,London Borough of Sutton,22/06/2023,10012607,13.90, AMZNMKTPLACE AMAZON.CO,"SPLIT - GROW YOUR OWN HERB GARDEN -12 HERB PLANTS VARIETIES, 8700 HERB SEEDS READY TO GROW - HERB PLANTING KIT FOR WOMEN, KIDS, BEGINNERS, GARDENERS GIFT - MI (32.42%)",Health and Wellbeing,Publicity,A44266,
http://opendatacommunities.org/id/london-borough-council/sutton,London Borough of Sutton,22/06/2023,10012607,19.64, AMZNMKTPLACE AMAZON.CO,SPLIT - KINGLAKE 100 PCS 6CM FIBRE SEED POTS BIODEGRADABLE PLANT POTS SMALL SEEDLING POTS WITH 100PCS PLASTIC PLANT LABELS 1X5CM (100%),Health and Wellbeing,Publicity,A44266,
http://opendatacommunities.org/id/london-borough-council/sutton,London Borough of Sutton,07/06/2023,10012607,47.99, ADOBE STOCK,ADOBE 070623 47.99,Health and Wellbeing,Publicity,A44266,
http://opendatacommunities.org/id/london-borough-council/sutton,London Borough of Sutton,05/06/2023,10012607,137.61, PAYPAL  BIGART,BIG ART BANNERS 050623 165.13,Health and Wellbeing,Publicity,A44266,
http://opendatacommunities.org/id/london-borough-council/sutton,London Borough of Sutton,01/06/2023,10012607,86.62, WWW.INSTANTPRINT.C,INSTANTPRINT 2324 ITEMS 010623 103.95|,Health and Wellbeing,Publicity,A44266,
http://opendatacommunities.org/id/london-borough-council/sutton,London Borough of Sutton,30/05/2023,10012607,93.89, MAILCHIMP,MAILCHIMP 300523 112.67,Health and Wellbeing,Publicity,A44266,
http://opendatacommunities.org/id/london-borough-council/sutton,London Borough of Sutton,26/05/2023,10012607,301.07, THOMAS RIDLEY FOODSERV,VENDING MACHINE SUPPLIES,Health and Wellbeing,Vending Machines Supplies,A44041,
http://opendatacommunities.org/id/london-borough-council/sutton,London Borough of Sutton,13/06/2023,10012607,15.83, WILKO RETAIL LIMITED,WILKO  ART EXHIBITION SUPPLIES 19.00 130623,Health and Wellbeing,Equipment And Materials Purchase,A40000,
http://opendatacommunities.org/id/london-borough-council/sutton,London Borough of Sutton,12/06/2023,10012607,45.00, WILKO RETAIL LIMITED,WILKO  ART EXHIBITION SUPPLIES 54.00 120623,Health and Wellbeing,Equipment And Materials Purchase,A40000,
http://opendatacommunities.org/id/london-borough-council/sutton,London Borough of Sutton,13/06/2023,10012607,8.33, WILKO RETAIL LIMITED,WILKO  ART EXHIBITION SUPPLIES 10.00 130623,Health and Wellbeing,Equipment And Materials Purchase,A40000,
http://opendatacommunities.org/id/london-borough-council/sutton,London Borough of Sutton,13/06/2023,10012607,77.42, WM MORRISONS STORE,MORRISONS 130623 ART PREVIEW EVENING 77.42,Health and Wellbeing,Catering,A41000,
http://opendatacommunities.org/id/london-borough-council/sutton,London Borough of Sutton,07/06/2023,10012607,1.25, WM MORRISONS STORE,MORRISONS 1.25 070623 MILK REED,Health and Wellbeing,Equipment And Materials Purchase,A40000,
http://opendatacommunities.org/id/london-borough-council/sutton,London Borough of Sutton,13/06/2023,10012607,1.15, WM MORRISONS STORE,MORRISONS 130623 MILK REED 1.15,Health and Wellbeing,Catering,A41000,
http://opendatacommunities.org/id/london-borough-council/sutton,London Borough of Sutton,13/06/2023,10012607,35.49, TURNERS GRAPHIC ART A,TURNERS ART SUPPLIES 42.59 090623,Health and Wellbeing,Equipment And Materials Purchase,A40000,
http://opendatacommunities.org/id/london-borough-council/sutton,London Borough of Sutton,11/06/2023,10012607,33.20, AMZNMKTPLACE,"SPLIT - SOURCINGMAP 2 PCS STAINLESS STEEL STRAIGHT BLUNT TWEEZERS SERRATED TIP, 5 INCH (100%)",Health and Wellbeing,Equipment And Materials Purchase,A40000,
http://opendatacommunities.org/id/london-borough-council/sutton,London Borough of Sutton,11/06/2023,10012607,29.64, AMZNMKTPLACE,SPLIT - EYE WASH - STERILE SALINE SOLUTION 20ML/0.9% (PACK OF 25) (100%),Health and Wellbeing,Equipment And Materials Purchase,A40000,
http://opendatacommunities.org/id/london-borough-council/sutton,London Borough of Sutton,11/06/2023,10012607,24.28, AMZNMKTPLACE,SPLIT - ARISON LASHES EYE GEL PADS 50 PAIRS EYELASH EXTENSION UNDER EYE GEL PATCHES LINT FREE EYE PATCHES WITH SMOOTH FRONT SIDE AND COLLAGEN BACK SIDE EYE PA (100%),Health and Wellbeing,Equipment And Materials Purchase,A40000,
http://opendatacommunities.org/id/london-borough-council/sutton,London Borough of Sutton,12/06/2023,10012607,11.48, AMZNMKTPLACE,"SPLIT - 400 PCS MICRO APPLICATOR BRUSH BENDABLE MAKEUP BRUSH MASCARA BRUSH FOR EYELASH EXTENSIONS, 2 COLORS (HEAD DIAMETER: 2.0/1.5 MM)",Health and Wellbeing,Equipment And Materials Purchase,A40000,
http://opendatacommunities.org/id/london-borough-council/sutton,London Borough of Sutton,09/06/2023,10012607,10.33, AMZNBUSINESS I51I23EG5,SPLIT - THE SURVIVAL GUIDE FOR KIDS WITH ADHD (SURVIVAL GUIDES FOR KIDS) (100%),People's Services,LAC - Education,A44280,
http://opendatacommunities.org/id/london-borough-council/sutton,London Borough of Sutton,09/06/2023,10012607,3.32, AMZNMKTPLACE AMAZON.CO,SPLIT - PACK OF 10 - MEDIUM TIP FLUENT SMOOTH WRITING BLACK BIRO BALLPOINT PENS (100%),People's Services,LAC - Education,A44280,
http://opendatacommunities.org/id/london-borough-council/sutton,London Borough of Sutton,09/06/2023,10012607,3.32, AMZNMKTPLACE AMAZON.CO,"SPLIT - PAINT BRUSH SET, 12PCS ARTIST PAINT BRUSH SET FOR KIDS AND ADULTS - ACRYLIC PAINT BRUSH FOR WATERCOLOR OIL PAINTING PERFECT FOR PROFESSIONALS AND BEGI (100%)",People's Services,LAC - Education,A44280,
http://opendatacommunities.org/id/london-borough-council/sutton,London Borough of Sutton,08/06/2023,10012607,7.69, AMZNMKTPLACE,"SPLIT - NOTEBOOK A5 JOURNAL, THICK CLASSIC NOTEBOOK, LARGE HARDCOVER, 296PP, 80GSM, 8.4 X 5.7 INCH (KRAFT) (100%)",People's Services,LAC - Education,A44280,
http://opendatacommunities.org/id/london-borough-council/sutton,London Borough of Sutton,08/06/2023,10012607,8.99, AMZNMKTPLACE AMAZON.CO,"SPLIT - COOLZON LARGE PENCIL CASE FOR GIRLS BOYS, BIG CAPACITY PENCIL CASES WITH 3 COMPARTMENTS PEN BAG POUCH HOLDER SCHOOL STATIONERY ORGANIZER MAKEUP COSMET (100%)",People's Services,LAC - Education,A44280,
http://opendatacommunities.org/id/london-borough-council/sutton,London Borough of Sutton,08/06/2023,10012607,19.89, AMZNMKTPLACE,SPLIT - THE ULTIMATE ILLUSTRATED HISTORY OF WORLD WARS I AND II: A BOX SET OF TWO REFERENCE BOOKS WITH 1000 PHOTOGRAPHS (ULTIMATE COLLECTED HISTORY) (87.66%),People's Services,LAC - Education,A44280,
http://opendatacommunities.org/id/london-borough-council/sutton,London Borough of Sutton,08/06/2023,10012607,2.80, AMZNMKTPLACE,BALANCING ENTRY AMOUNT (12.34%),People's Services,LAC - Education,A44280,
http://opendatacommunities.org/id/london-borough-council/sutton,London Borough of Sutton,08/06/2023,10012607,4.99, AMZNMKTPLACE,SPLIT - THE RUNNING GIRLS (100%),People's Services,LAC - Education,A44280,
http://opendatacommunities.org/id/london-borough-council/sutton,London Borough of Sutton,08/06/2023,10012607,3.12, AMZNMKTPLACE,"SPLIT - BIC TIPP-EX MINI POCKET MOUSE CORRECTION TAPE�-�PACK OF 2�+ 1,WHITE (100%)",People's Services,LAC - Education,A44280,
http://opendatacommunities.org/id/london-borough-council/sutton,London Borough of Sutton,08/06/2023,10012607,19.99, AMZNMKTPLACE,SPLIT - ALINMO 13200PCS 84 COLOURS CLAY BEADS FOR BRACELET MAKING KIT FLAT ROUND POLYMER CLAY BEADS SPACER HEISHI BEADS FOR JEWELRY MAKING WITH PENDANT CHARMS (100%),People's Services,LAC - Education,A44280,
http://opendatacommunities.org/id/london-borough-council/sutton,London Borough of Sutton,08/06/2023,10012607,14.37, AMZNBUSINESS IA5BO9AP5,SPLIT - TRINITY COLLEGE LONDON ROCK & POP 2018 DRUMS GRADE 1 (TRINITY ROCK & POP) (79.48%),People's Services,LAC - Education,A44280,
http://opendatacommunities.org/id/london-borough-council/sutton,London Borough of Sutton,08/06/2023,10012607,3.71, AMZNBUSINESS IA5BO9AP5,SPLIT - TRINITY COLLEGE LONDON ROCK & POP 2018 DRUMS GRADE 1 CD ONLY (TRINITY ROCK & POP) (TRINITY ROCK & POP) (20.52%),People's Services,LAC - Education,A44280,
http://opendatacommunities.org/id/london-borough-council/sutton,London Borough of Sutton,08/06/2023,10012607,19.99, AMZNMKTPLACE AMAZON.CO,"SPLIT - TRONSMART TRIP MINI PORTABLE BLUETOOTH SPEAKER, SPEAKER WITH BLUETOOTH 5.3, 20H PLAYTIME, AUX, MIC, IPX7 WATERPROOF SPEAKERS, WIRELESS OUTDOOR SPEAKER (100%)",People's Services,LAC - Education,A44280,
http://opendatacommunities.org/id/london-borough-council/sutton,London Borough of Sutton,07/06/2023,10012607,362.99, AMZNMKTPLACE AMAZON.CO,"SPLIT - ARTIST HAND DIGITAL PIANO 88 WEIGHTED KEYS HAMMER ACTION TOUCH SENSITIVITY, FULL SIZE 88 KEY PIANO KEYBOARD WEIGHTED WHITE PIANO WITH 3 PEDAL SYSTEMS, DUAL STEREO SPEAKERS, FURNITURE STAND (94.78%)",People's Services,LAC - Education,A44280,
http://opendatacommunities.org/id/london-borough-council/sutton,London Borough of Sutton,07/06/2023,10012607,19.99, AMZNMKTPLACE AMAZON.CO,BALANCING ENTRY AMOUNT (5.22%),People's Services,LAC - Education,A44280,
http://opendatacommunities.org/id/london-borough-council/sutton,London Borough of Sutton,27/05/2023,10012607,200.00, AMAZON.CO.UK HI6F740M5,SPLIT - APPLE GIFT CARD - UK - EMAIL DELIVERY (100%),People's Services,LAC - Education,A44280,
